bitfinex-derivatives/quotes_BTCF0:USTF0_20251108
["timestamp","ask_amount","ask_price","bid_price","bid_amount"]
[1762573209642,0.59890659,102980.0,102970.0,0.0021456]
[1762573210134,0.68631703,102980.0,102970.0,0.0021456]
[1762573211741,0.60327984,102980.0,102970.0,0.0993244]
[1762573211941,0.68631703,102980.0,102970.0,0.0993244]
[1762573212345,0.68631703,102980.0,102970.0,0.18236159]
[1762573213140,0.60327984,102980.0,102970.0,0.0021456]
[1762573213442,0.60327984,102980.0,102970.0,0.18236159]
[1762573214235,0.58563013,102980.0,102970.0,0.22562159]
[1762573214435,0.58563013,102980.0,102970.0,0.0993244]
[1762573214644,0.58563013,102980.0,102970.0,0.08518279]
[1762573215047,0.58563013,102980.0,102970.0,0.18236159]
[1762573215246,0.58563013,102980.0,102970.0,0.08518279]
[1762573215437,0.59890659,102980.0,102970.0,0.0021456]
[1762573215948,0.68631703,102980.0,102970.0,0.0021456]
[1762573216750,0.66865528,102980.0,102970.0,0.0021456]
[1762573220649,0.59890659,102980.0,102970.0,0.0021456]
[1762573222957,0.68631703,102980.0,102970.0,0.0021456]
[1762573224560,0.0579,102950.0,102940.0,0.58430029]
[1762573224748,0.56821329,102950.0,102940.0,0.22350029]
[1762573225056,0.58565182,102950.0,102940.0,0.30653748]
[1762573225448,0.58565182,102950.0,102940.0,0.22350029]
[1762573225757,0.58665182,102950.0,102940.0,0.1444631]
[1762573225955,0.58665182,102950.0,102940.0,0.1464631]
[1762573226254,0.58665182,102950.0,102940.0,0.22950429]
[1762573226451,0.58665182,102950.0,102940.0,0.1464671]
[1762573226755,0.58665182,102950.0,102940.0,0.22950429]
[1762573226947,0.5168977,102950.0,102940.0,0.1464671]
[1762573227147,0.58665182,102950.0,102940.0,0.22950429]
[1762573227365,0.5168977,102950.0,102940.0,0.22950429]
[1762573227554,0.5168977,102950.0,102940.0,0.22750429]
[1762573228058,0.5158977,102950.0,102940.0,0.02116]
[1762573228349,0.68634533,102950.0,102940.0,0.001]
[1762573228949,0.66869557,102950.0,102940.0,0.001]
[1762573231755,0.1548471,102940.0,102930.0,0.22374053]
[1762573231955,0.57780058,102940.0,102930.0,0.22374053]
[1762573233655,0.67829498,102940.0,102930.0,0.00019774]
[1762573234055,0.69594474,102940.0,102930.0,0.00019774]
[1762573234444,0.69594474,102940.0,102930.0,0.00119774]
[1762573234850,0.6085343,102940.0,102930.0,0.00119774]
[1762573235256,0.69594474,102940.0,102930.0,0.00119774]
[1762573235459,0.120106,102920.0,102910.0,0.08303719]
[1762573235645,0.05764,102910.0,102900.0,0.22356639]
[1762573235850,0.10992051,102910.0,102900.0,0.22356639]
[1762573236050,0.0965426,102910.0,102900.0,0.68084358]
[1762573236452,0.1548849,102900.0,102890.0,0.22357489]
[1762573236655,0.5679675,102900.0,102890.0,0.22358149]
[1762573236850,0.5679675,102900.0,102890.0,0.12632719]
[1762573237248,0.5679675,102900.0,102890.0,0.22358149]
[1762573237450,0.5679675,102900.0,102890.0,0.12632719]
[1762573237657,0.4707226,102900.0,102890.0,0.22358149]
[1762573237851,0.4737226,102900.0,102890.0,0.22358149]
[1762573238255,0.0995426,102900.0,102890.0,0.58957149]
[1762573238456,0.13433843,102900.0,102890.0,0.58957149]
[1762573238655,0.14971843,102900.0,102890.0,0.58957149]
[1762573238957,0.24696333,102900.0,102890.0,0.58957149]
[1762573239553,0.14971843,102900.0,102890.0,0.58957149]
[1762573242058,0.13633843,102900.0,102890.0,0.58957149]
[1762573242562,0.02325,102880.0,102870.0,0.4715093]
[1762573242759,0.04655306,102880.0,102870.0,0.68326368]
[1762573244263,0.24007405,102880.0,102870.0,0.04568]
[1762573244459,0.1569533,102870.0,102860.0,0.04568]
[1762573244761,0.5698525,102870.0,102860.0,0.12871719]
[1762573245355,0.05968,102860.0,102850.0,0.22609981]
[1762573245560,0.68761074,102860.0,102850.0,0.02337042]
[1762573245867,0.65289909,102860.0,102850.0,9.042e-05]
[1762573246160,0.67050372,102860.0,102850.0,9.042e-05]
[1762573246361,0.65281712,102860.0,102850.0,9.042e-05]
[1762573246560,0.55553442,102860.0,102850.0,0.09738262]
[1762573246759,0.47249723,102860.0,102850.0,0.18041981]
[1762573247151,0.09847723,102860.0,102850.0,0.23425981]
[1762573247358,0.13315991,102860.0,102850.0,0.23425981]
[1762573247562,0.14637991,102860.0,102850.0,0.23425981]
[1762573247764,0.14637991,102860.0,102850.0,0.22609981]
[1762573247966,0.14937991,102860.0,102850.0,0.23425981]
[1762573248162,0.08414268,102860.0,102850.0,0.23425981]
[1762573248464,0.05046,102860.0,102850.0,0.23425981]
[1762573249056,0.06368,102860.0,102850.0,0.23425981]
[1762573249264,0.05046,102860.0,102850.0,0.23425981]
[1762573249464,0.06368,102860.0,102850.0,0.23425981]
[1762573251865,0.06368,102860.0,102850.0,0.678097]
[1762573251866,0.08514268,102860.0,102850.0,0.678097]
[1762573252065,0.05046,102860.0,102850.0,0.59505981]
[1762573253569,0.06368,102860.0,102850.0,0.46632761]
[1762573253774,0.05968,102830.0,102820.0,0.40648]
[1762573253967,0.19167378,102830.0,102820.0,0.12871719]
[1762573254266,0.09436268,102830.0,102820.0,0.12871719]
[1762573254474,0.19167378,102830.0,102820.0,0.04568]
[1762573254658,0.05968,102820.0,102810.0,0.517569]
[1762573254859,0.1570006,102820.0,102810.0,0.517569]
[1762573255061,0.04646,102800.0,102790.0,0.4708489]
[1762573255367,0.0598256,102810.0,102800.0,0.1557195]
[1762573255564,0.05992549,102810.0,102800.0,0.6276085]
[1762573256371,0.05992549,102810.0,102800.0,0.5165195]
[1762573256770,0.00124549,102810.0,102800.0,0.5165195]
[1762573258874,0.00124549,102810.0,102800.0,0.5175195]
[1762573259271,0.55803421,102830.0,102820.0,0.1525405]
[1762573259272,0.05691268,102830.0,102820.0,0.1525405]
[1762573259481,0.06660333,102830.0,102820.0,0.1525405]
[1762573259674,0.08784333,102830.0,102820.0,0.1525405]
[1762573260174,0.08784333,102830.0,102820.0,0.05522]
[1762573260175,0.17546378,102830.0,102820.0,0.05522]
[1762573260474,0.09519626,102830.0,102820.0,0.1410905]
[1762573260772,0.08123626,102830.0,102820.0,0.5081305]
[1762573261074,0.17854736,102830.0,102820.0,0.5081305]
[1762573261375,0.19250736,102830.0,102820.0,0.5081305]
[1762573261876,0.19550736,102830.0,102820.0,0.5081305]
[1762573262978,0.09819626,102830.0,102820.0,0.5081305]
[1762573264178,0.19550736,102830.0,102820.0,0.5081305]
[1762573264479,0.24752459,102830.0,102820.0,0.5081305]
[1762573264773,0.19550736,102830.0,102820.0,0.5081305]
[1762573264973,0.09819626,102830.0,102820.0,0.5081305]
[1762573265379,0.15021349,102830.0,102820.0,0.5081305]
[1762573265679,0.13625349,102830.0,102820.0,0.5081305]
[1762573266072,0.23356459,102830.0,102820.0,0.5081305]
[1762573266277,0.13625349,102830.0,102820.0,0.5081305]
[1762573266878,0.23356459,102830.0,102820.0,0.5081305]
[1762573267080,0.24752459,102830.0,102820.0,0.41081]
[1762573267283,0.57364191,102830.0,102820.0,0.04377]
[1762573268981,0.1547506,102820.0,102810.0,0.1412454]
[1762573269182,0.60232918,102820.0,102810.0,0.1412454]
[1762573269386,0.60232918,102820.0,102810.0,0.0439156]
[1762573269683,0.56761775,102820.0,102810.0,0.0439156]
[1762573269883,0.5155506,102820.0,102810.0,0.0001456]
[1762573270078,0.58625443,102820.0,102810.0,0.0001456]
[1762573270381,0.58725443,102820.0,102810.0,0.1412456]
[1762573272406,0.48993383,102820.0,102810.0,0.1412456]
[1762573273079,0.48993383,102820.0,102810.0,0.1531756]
[1762573273290,0.58725433,102820.0,102810.0,0.1531756]
[1762573273479,0.48993383,102820.0,102810.0,0.1531756]
[1762573273781,0.11517383,102820.0,102810.0,0.5139756]
[1762573273980,0.22645433,102820.0,102810.0,0.5139756]
[1762573274180,0.22645433,102820.0,102810.0,0.5020456]
[1762573274484,0.12913383,102820.0,102810.0,0.5020456]
[1762573274685,0.11517383,102820.0,102810.0,0.5139756]
[1762573276281,0.11517383,102820.0,102810.0,0.62507616]
[1762573276787,0.05422583,102820.0,102810.0,0.62507616]
[1762573276985,0.002,102820.0,102810.0,0.62507616]
[1762573277387,0.09393383,102820.0,102810.0,0.62507616]
[1762573277687,0.07170383,102820.0,102810.0,0.62507616]
[1762573277878,0.05423732,102820.0,102810.0,0.5139756]
[1762573278078,0.04547,102820.0,102810.0,0.62507616]
[1762573278282,0.12913383,102820.0,102810.0,0.26427616]
[1762573278480,0.22645433,102820.0,102810.0,0.62507616]
[1762573279487,0.58725433,102820.0,102810.0,0.25234616]
[1762573281386,0.5175505,102820.0,102810.0,0.25234616]
[1762573281587,0.5175505,102820.0,102810.0,0.15501616]
[1762573281783,0.5175505,102820.0,102810.0,0.25234616]
[1762573282587,0.67476922,102820.0,102810.0,0.25234616]
[1762573282783,0.58735878,102820.0,102810.0,0.1412456]
[1762573283292,0.5175505,102820.0,102810.0,0.1412456]
[1762573283491,0.60496094,102820.0,102810.0,0.1412456]
[1762573289289,0.1335495,102800.0,102790.0,0.1409586]
[1762573289594,0.22649086,102800.0,102790.0,0.1409589]
[1762573289784,0.22649086,102800.0,102790.0,0.02184]
[1762573289980,0.58729086,102800.0,102790.0,0.1191889]
[1762573290192,0.58729086,102800.0,102790.0,0.1409589]
[1762573290393,0.42003123,102800.0,102790.0,0.25205946]
[1762573290593,0.50744167,102800.0,102790.0,0.25205946]
[1762573291103,0.50744167,102800.0,102790.0,0.26513946]
[1762573291990,0.50744167,102800.0,102790.0,0.25405946]
[1762573292288,0.50744167,102800.0,102790.0,0.004]
[1762573292289,0.51737073,102800.0,102790.0,0.004]
[1762573292492,0.51737073,102800.0,102790.0,0.04761]
[1762573292686,0.60478117,102800.0,102790.0,0.04761]
[1762573292888,0.51737073,102800.0,102790.0,0.02584]
[1762573293282,0.51737073,102800.0,102790.0,0.004]
[1762573293596,0.60478117,102800.0,102790.0,0.004]
[1762573294698,0.60478117,102800.0,102790.0,0.002]
[1762573295191,0.0973489,102790.0,102780.0,0.097353]
[1762573295496,0.22626537,102790.0,102780.0,0.140963]
[1762573295794,0.12891647,102790.0,102780.0,0.140963]
[1762573296593,0.12891647,102790.0,102780.0,0.142963]
[1762573296896,0.12891647,102790.0,102780.0,0.26714356]
[1762573297092,0.06463109,102800.0,102790.0,0.1464489]
[1762573297303,9.123e-05,102800.0,102790.0,0.86154946]
[1762573297596,0.03498088,102800.0,102790.0,0.86154946]
[1762573298398,0.05248008,102810.0,102800.0,0.1540295]
[1762573298599,0.0001456,102810.0,102800.0,0.5148295]
[1762573298802,1e-07,102810.0,102800.0,0.7579895]
[1762573299301,0.0460501,102810.0,102800.0,0.5148295]
[1762573299490,0.0470501,102810.0,102800.0,0.5148295]
[1762573299894,0.09938458,102810.0,102800.0,0.5148295]
[1762573300087,0.0460501,102810.0,102800.0,0.5168295]
[1762573300289,0.11147458,102810.0,102800.0,0.5168295]
[1762573300486,0.13310453,102810.0,102800.0,0.5168295]
[1762573300689,0.15603453,102810.0,102800.0,0.5168295]
[1762573301088,0.1310684,102780.0,102770.0,0.00011105]
[1762573301290,0.1434274,102760.0,102750.0,0.05669]
[1762573301591,0.40685,102760.0,102750.0,0.05669]
[1762573301792,0.5042274,102760.0,102750.0,0.05669]
[1762573301991,0.5042274,102760.0,102750.0,0.02184]
[1762573302193,0.1401968,102750.0,102740.0,0.05808]
[1762573302404,0.4558421,102750.0,102740.0,0.05808]
[1762573302690,0.5009968,102750.0,102740.0,0.05808]
[1762573303091,0.55317436,102750.0,102740.0,0.05808]
[1762573303489,0.55317436,102750.0,102740.0,0.03533]
[1762573303689,0.55317436,102750.0,102730.0,0.01308]
[1762573303895,0.1402158,102730.0,102720.0,0.05808]
[1762573304094,0.55319336,102730.0,102720.0,0.05808]
[1762573304295,0.19239336,102730.0,102720.0,0.05808]
[1762573304697,0.55319336,102730.0,102720.0,0.05808]
[1762573305303,0.55319336,102730.0,102720.0,0.1554953]
[1762573305304,0.45578756,102730.0,102720.0,0.1554953]
[1762573305502,0.09498756,102730.0,102720.0,0.1574953]
[1762573305703,0.41322327,102740.0,102730.0,0.1424058]
[1762573305999,0.00024571,102740.0,102730.0,0.5032058]
[1762573306195,0.00024571,102740.0,102730.0,0.1424058]
[1762573306802,0.00124571,102740.0,102730.0,0.5032058]
[1762573307401,0.00124571,102740.0,102730.0,0.1424058]
[1762573307592,0.00124571,102740.0,102730.0,0.5032058]
[1762573309598,0.45578756,102770.0,102760.0,0.045]
[1762573309802,0.5009779,102770.0,102760.0,0.05834]
[1762573309998,0.56319721,102780.0,102770.0,0.045]
[1762573311700,0.57719721,102780.0,102770.0,0.046]
[1762573312411,0.59857274,102780.0,102770.0,0.046]
[1762573312704,0.60157274,102780.0,102770.0,0.046]
[1762573313099,0.54939518,102780.0,102770.0,0.046]
[1762573313506,0.53539518,102780.0,102770.0,0.045]
[1762573313801,0.44503118,102780.0,102770.0,0.1433679]
[1762573314107,0.03137553,102780.0,102770.0,0.70053969]
[1762573314299,0.03137553,102780.0,102770.0,0.63444761]
[1762573314501,0.02737553,102780.0,102770.0,0.63344761]
[1762573315304,0.02137553,102780.0,102770.0,0.63344761]
[1762573315705,0.06418553,102780.0,102770.0,0.5031679]
[1762573315907,0.02137553,102780.0,102770.0,0.5031679]
[1762573317415,0.02137553,102780.0,102770.0,0.63344761]
[1762573318003,0.02137553,102780.0,102770.0,0.87668761]
[1762573319106,0.02137553,102780.0,102770.0,0.63344761]
[1762573319405,0.02137553,102780.0,102770.0,0.87668761]
[1762573320407,0.02137553,102780.0,102770.0,0.89044761]
[1762573320607,0.02137553,102780.0,102770.0,0.64720761]
[1762573320911,0.02137553,102780.0,102770.0,0.89244761]
[1762573321608,0.0001456,102790.0,102780.0,0.1560084]
[1762573321800,0.0001456,102790.0,102780.0,0.64708811]
[1762573322005,0.0001456,102790.0,102780.0,0.89032811]
[1762573322211,0.0001456,102790.0,102780.0,0.64708811]
[1762573323115,0.0001456,102790.0,102780.0,0.89032811]
[1762573323912,0.05200411,102810.0,102800.0,0.1559895]
[1762573324115,0.45850411,102820.0,102810.0,0.15598]
[1762573324317,0.45850411,102820.0,102770.0,0.40569]
[1762573324318,0.02938,102780.0,102770.0,0.40569]
[1762573324606,0.1430774,102760.0,102750.0,0.17516971]
[1762573324810,0.02283,102760.0,102750.0,0.1422768]
[1762573325004,0.02283,102760.0,102750.0,0.04489]
[1762573325209,0.45870821,102770.0,102760.0,0.05865]
[1762573325514,0.5040135,102770.0,102760.0,0.18892971]
[1762573325713,0.05220821,102770.0,102760.0,0.54972971]
[1762573325906,0.0001456,102770.0,102760.0,0.54972971]
[1762573326100,0.0975135,102770.0,102760.0,0.18892971]
[1762573326311,0.3609456,102770.0,102760.0,0.18892971]
[1762573326608,0.4583135,102770.0,102760.0,0.18892971]
[1762573326907,0.4583135,102770.0,102760.0,0.18992971]
[1762573327111,0.4583135,102770.0,102760.0,0.001]
[1762573327112,0.55607611,102770.0,102760.0,0.001]
[1762573327614,0.1430868,102750.0,102740.0,0.0450356]
[1762573327815,0.55594601,102750.0,102740.0,0.0232456]
[1762573328010,0.55594601,102750.0,102740.0,0.0450356]
[1762573328207,0.55594601,102750.0,102740.0,0.0587956]
[1762573328418,0.10959863,102750.0,102740.0,0.64727161]
[1762573328715,0.13246863,102750.0,102740.0,0.64727161]
[1762573329710,0.13246863,102750.0,102740.0,0.5169919]
[1762573330113,0.19514601,102750.0,102740.0,0.5169919]
[1762573330421,0.55594601,102750.0,102740.0,0.0587956]
[1762573331109,0.55594601,102750.0,102740.0,0.0597956]
[1762573332013,0.5038868,102750.0,102740.0,0.0229356]
[1762573332316,0.57321236,102750.0,102740.0,0.0011456]
[1762573333610,0.59454693,102750.0,102740.0,0.0011456]
[1762573335007,0.47429013,102750.0,102740.0,0.1571919]
[1762573335213,0.4342627,102750.0,102740.0,0.28747161]
[1762573335416,0.46901658,102750.0,102740.0,0.28747161]
[1762573336120,0.10821658,102750.0,102740.0,0.1571919]
[1762573336412,0.05608845,102750.0,102740.0,0.28747161]
[1762573336817,0.03475388,102750.0,102740.0,0.64827161]
[1762573337120,0.05608845,102750.0,102740.0,0.64827161]
[1762573337417,0.03475388,102750.0,102740.0,0.64827161]
[1762573337614,0.05608845,102750.0,102740.0,0.64827161]
[1762573337815,0.03475388,102750.0,102740.0,0.64827161]
[1762573338010,0.05608845,102750.0,102740.0,0.64827161]
[1762573338523,0.03475388,102750.0,102740.0,0.64827161]
[1762573338717,0.05608845,102750.0,102740.0,0.64827161]
[1762573339219,0.03475388,102750.0,102740.0,0.5179919]
[1762573339416,0.05608845,102750.0,102740.0,0.64827161]
[1762573339619,0.03475388,102750.0,102740.0,0.64827161]
[1762573339813,0.03475388,102750.0,102740.0,0.64927161]
[1762573339814,0.05608845,102750.0,102740.0,0.64927161]
[1762573340017,0.03475388,102750.0,102740.0,0.89259161]
[1762573340214,0.02133457,102750.0,102740.0,0.64827161]
[1762573340519,3.88e-06,102760.0,102750.0,0.0973868]
[1762573340821,3.88e-06,102760.0,102750.0,0.58846651]
[1762573341424,0.05227373,102770.0,102760.0,0.1560274]
[1762573341724,0.0001456,102770.0,102760.0,0.28630711]
[1762573342015,0.0001456,102770.0,102760.0,0.89038711]
[1762573342224,0.05212813,102790.0,102780.0,0.1461484]
[1762573342415,0.10437813,102800.0,102790.0,0.1422389]
[1762573342610,0.05225,102800.0,102790.0,0.1422389]
[1762573342809,0.05225,102800.0,102790.0,0.5030389]
[1762573343622,0.0457,102800.0,102790.0,0.5030389]
[1762573343923,0.45877373,102810.0,102800.0,0.1559895]
[1762573345226,0.0973438,102800.0,102780.0,0.0001456]
[1762573345426,0.05215247,102790.0,102780.0,0.156154]
[1762573345618,0.16766996,102800.0,102790.0,0.04489]
[1762573345819,0.88926996,102800.0,102790.0,0.04489]
[1762573346019,0.88826996,102800.0,102790.0,0.04489]
[1762573346326,0.0973489,102790.0,102780.0,0.0370056]
[1762573346623,0.41294705,102790.0,102780.0,0.18907531]
[1762573347024,0.51029595,102790.0,102780.0,0.0587956]
[1762573347825,0.4581489,102790.0,102780.0,0.0587956]
[1762573348227,0.51929595,102790.0,102780.0,0.0597956]
[1762573349125,0.4671489,102790.0,102780.0,0.0597956]
[1762573349425,0.4761489,102790.0,102780.0,0.0607956]
[1762573352726,0.54567415,102790.0,102780.0,0.0607956]
[1762573354432,0.4761489,102790.0,102780.0,0.0607956]
[1762573354941,0.54577154,102790.0,102780.0,0.0607956]
[1762573356525,0.54577154,102790.0,102780.0,0.158154]
[1762573356725,0.54577154,102790.0,102780.0,0.0607956]
[1762573357932,0.54577154,102790.0,102780.0,0.0159056]
[1762573358323,0.54577154,102790.0,102780.0,0.0382556]
[1762573358529,0.54577154,102790.0,102780.0,0.0021456]
[1762573358729,0.4761489,102790.0,102780.0,0.0021456]
[1762573359131,0.54574374,102790.0,102780.0,0.0021456]
[1762573359330,0.54574374,102790.0,102780.0,0.0158756]
[1762573360039,0.54574374,102790.0,102780.0,0.0105493]
[1762573360428,0.56355934,102790.0,102780.0,0.0105493]
[1762573360829,0.56355934,102790.0,102780.0,0.0559893]
[1762573363833,0.54579405,102790.0,102780.0,0.0559893]
[1762573365234,0.54579405,102790.0,102780.0,0.1533477]
[1762573366531,0.54579405,102790.0,102780.0,0.0559893]
[1762573367040,0.54579405,102790.0,102780.0,0.0105493]
[1762573368740,0.0973584,102780.0,102770.0,0.0137556]
[1762573369040,0.52791116,102780.0,102770.0,0.0565556]
[1762573369234,0.4581584,102780.0,102770.0,0.0565556]
[1762573369435,0.54556884,102780.0,102770.0,0.0565556]
[1762573370138,0.54856884,102780.0,102770.0,0.0575556]
[1762573370333,0.55156884,102780.0,102770.0,0.0585556]
[1762573370942,0.55156884,102780.0,102770.0,0.1559235]
[1762573371545,0.55156884,102780.0,102770.0,0.0585556]
[1762573372244,0.62134629,102780.0,102770.0,0.0585556]
[1762573372440,0.53393585,102780.0,102770.0,0.1559235]
[1762573374043,0.53393585,102780.0,102770.0,0.0585556]
[1762573374750,0.53393585,102780.0,102770.0,0.1559235]
[1762573374942,0.53393585,102780.0,102770.0,0.0368956]
[1762573375343,0.53393585,102780.0,102770.0,0.0585556]
[1762573375740,0.4641584,102780.0,102770.0,0.0585556]
[1762573376042,0.55156884,102780.0,102770.0,0.0585556]
[1762573376948,0.55156884,102780.0,102770.0,0.1559235]
[1762573377748,0.4641584,102780.0,102770.0,0.1559235]
[1762573378043,0.58593977,102780.0,102770.0,0.1559235]
[1762573378236,0.57592014,102780.0,102770.0,0.1559235]
[1762573378644,0.45413877,102780.0,102770.0,0.1559235]
[1762573379049,0.52400846,102780.0,102770.0,0.35252821]
[1762573379350,0.45413877,102780.0,102770.0,0.35252821]
[1762573380042,0.55149717,102780.0,102770.0,0.25516031]
[1762573380250,0.55149717,102780.0,102770.0,0.35252821]
[1762573380843,0.53403315,102780.0,102770.0,0.35252821]
[1762573381042,0.4641584,102780.0,102770.0,0.35252821]
[1762573381243,0.436675,102780.0,102770.0,0.35252821]
[1762573384557,0.3668,102780.0,102770.0,0.59576821]
[1762573385254,0.02339082,102780.0,102770.0,1.19576821]
[1762573385459,0.5334295,102790.0,102780.0,0.05665]
[1762573385949,0.08748437,102790.0,102780.0,0.35061311]
[1762573386150,0.48258137,102810.0,102800.0,0.1539895]
[1762573386151,0.47492779,102810.0,102800.0,0.1539895]
[1762573386354,0.47492779,102810.0,102800.0,0.35059421]
[1762573386951,0.47492779,102810.0,102800.0,0.89591421]
[1762573387854,0.47692779,102810.0,102800.0,0.6993095]
[1762573388155,0.40707,102810.0,102800.0,0.6993095]
[1762573388546,0.40707,102810.0,102800.0,0.7003095]
[1762573388750,0.47692779,102810.0,102800.0,0.7003095]
[1762573389350,0.47492779,102810.0,102800.0,0.7003095]
[1762573389755,0.47492779,102810.0,102800.0,0.7013095]
[1762573390059,0.40507,102810.0,102800.0,0.7013095]
[1762573390254,0.40507,102810.0,102800.0,0.6993095]
[1762573390452,0.40707,102810.0,102800.0,0.6993095]
[1762573392652,0.5044,102810.0,102800.0,0.6993095]
[1762573394062,0.40707,102810.0,102800.0,0.6993095]
[1762573395862,0.0358205,102810.0,102800.0,1.3032695]
[1762573396058,0.0358205,102810.0,102800.0,1.3042695]
[1762573396364,0.0348205,102810.0,102800.0,1.3052695]
[1762573396555,5e-07,102810.0,102800.0,1.0621095]
[1762573396956,0.3609456,102820.0,102810.0,0.15261]
[1762573397156,0.4052156,102820.0,102810.0,0.34921471]
[1762573398064,0.4185256,102820.0,102810.0,0.14015]
[1762573398655,0.5158461,102820.0,102810.0,0.04282]
[1762573398856,0.5168461,102820.0,102810.0,0.02136]
[1762573399059,0.05758,102810.0,102800.0,0.7003008]
[1762573399362,0.40507,102810.0,102800.0,0.6993008]
[1762573400159,0.3629456,102820.0,102810.0,0.15398]
[1762573400357,0.0021456,102820.0,102810.0,0.35058471]
[1762573400662,0.0464156,102820.0,102810.0,0.35058471]
[1762573400862,0.0464156,102820.0,102810.0,1.25654471]
[1762573401359,0.4072156,102820.0,102810.0,0.89574471]
[1762573401661,0.4185256,102820.0,102810.0,0.88191471]
[1762573402055,0.4185256,102820.0,102810.0,0.14015]
[1762573402254,0.4195256,102820.0,102810.0,0.14015]
[1762573402962,0.4205256,102820.0,102810.0,0.14015]
[1762573403564,0.4205256,102820.0,102810.0,0.09733]
[1762573403964,0.4205256,102820.0,102810.0,0.11869]
[1762573404760,0.49038339,102820.0,102810.0,0.11869]
[1762573405264,0.49038339,102820.0,102810.0,0.14015]
[1762573406265,0.49038339,102820.0,102810.0,0.15305]
[1762573407266,0.4205256,102820.0,102810.0,0.15305]
[1762573407969,0.49016479,102820.0,102810.0,0.30265]
[1762573408166,0.4205256,102820.0,102810.0,0.30265]
[1762573408364,0.50786437,102820.0,102810.0,0.30265]
[1762573408574,0.50786437,102820.0,102810.0,0.28975]
[1762573409069,0.60518487,102820.0,102810.0,0.1496]
[1762573409271,0.58754078,102820.0,102810.0,0.1496]
[1762573409660,0.49022028,102820.0,102810.0,0.26898]
[1762573409860,0.49022028,102820.0,102810.0,0.29124]
[1762573410566,0.49022028,102820.0,102810.0,0.30414]
[1762573410567,0.45948804,102820.0,102810.0,0.30414]
[1762573410760,0.45948804,102820.0,102810.0,0.15454]
[1762573411069,0.0594756,102820.0,102810.0,0.15454]
[1762573411259,0.47254804,102820.0,102810.0,0.15454]
[1762573411661,0.45948804,102820.0,102810.0,0.15454]
[1762573413270,0.47254804,102820.0,102810.0,0.15454]
[1762573413469,0.47254804,102820.0,102810.0,0.14164]
[1762573414062,0.47154804,102820.0,102810.0,0.14264]
[1762573414264,0.47154804,102820.0,102810.0,0.09833]
[1762573414663,0.56886864,102820.0,102810.0,0.09833]
[1762573414858,0.56886864,102820.0,102810.0,0.001]
[1762573415058,0.48897028,102820.0,102810.0,0.09833]
[1762573415469,0.48897028,102820.0,102810.0,0.14264]
[1762573415772,0.48897028,102820.0,102810.0,0.11938]
[1762573415971,0.48997028,102820.0,102810.0,0.09733]
[1762573416363,0.48897028,102820.0,102810.0,0.09833]
[1762573416771,0.4192756,102820.0,102810.0,0.09833]
[1762573416968,0.4202756,102820.0,102810.0,0.11938]
[1762573417172,0.4222756,102820.0,102810.0,0.14164]
[1762573418773,0.4202756,102820.0,102810.0,0.14164]
[1762573419273,0.60493497,102820.0,102810.0,0.09733]
[1762573419468,0.50661437,102820.0,102810.0,0.15454]
[1762573419772,0.50761437,102820.0,102810.0,0.15454]
[1762573420567,0.07196757,102820.0,102810.0,0.59430471]
[1762573421278,0.47650757,102820.0,102810.0,0.35114471]
[1762573421464,0.48955757,102820.0,102810.0,0.35114471]
[1762573421672,0.48855757,102820.0,102810.0,0.89626471]
[1762573421872,0.48955757,102820.0,102810.0,0.33824471]
[1762573422169,0.48955757,102820.0,102810.0,0.14164]
[1762573422368,0.48855757,102820.0,102810.0,0.14164]
[1762573422568,0.48955757,102820.0,102810.0,0.14164]
[1762573422773,0.05688,102810.0,102800.0,0.3036811]
[1762573423074,0.48750197,102810.0,102800.0,0.3036811]
[1762573425478,0.48750197,102810.0,102800.0,0.1540811]
[1762573425773,0.48750197,102810.0,102800.0,0.1560811]
[1762573426677,0.48850197,102810.0,102800.0,0.1550811]
[1762573426976,0.48950197,102810.0,102800.0,0.1540811]
[1762573428677,0.4661345,102810.0,102800.0,0.1538711]
[1762573428876,0.4885645,102810.0,102800.0,0.1538711]
[1762573429377,0.4755145,102810.0,102800.0,0.1538711]
[1762573432174,0.4745145,102810.0,102800.0,0.1548711]
[1762573433075,0.4745145,102810.0,102800.0,0.1538711]
[1762573433278,0.4755145,102810.0,102800.0,0.1538711]
[1762573434478,0.1147145,102810.0,102800.0,0.1538711]
[1762573434981,0.1127145,102810.0,102800.0,0.1538711]
[1762573435169,0.1127145,102810.0,102800.0,0.1558711]
[1762573436182,0.4735145,102810.0,102800.0,0.1558711]
[1762573436382,0.06982197,102810.0,102800.0,0.77704828]
[1762573436679,0.06982197,102810.0,102800.0,0.64685969]
[1762573436680,0.0464559,102810.0,102800.0,0.64685969]
[1762573436874,0.0464559,102810.0,102800.0,1.02020828]
[1762573437573,0.01740882,102810.0,102800.0,0.77704828]
[1762573437775,0.3609456,102820.0,102810.0,0.14004]
[1762573437976,0.3609456,102820.0,102810.0,0.27022859]
[1762573438175,0.0001456,102820.0,102810.0,0.63102859]
[1762573439074,0.0011456,102820.0,102810.0,0.63102859]
[1762573439274,0.0021456,102820.0,102810.0,0.63102859]
[1762573439988,0.0451056,102820.0,102810.0,0.63102859]
[1762573440173,0.0451056,102820.0,102810.0,0.27022859]
[1762573440481,0.0451056,102820.0,102810.0,0.30665586]
[1762573441681,0.4059056,102820.0,102810.0,0.85177586]
[1762573441881,0.4193956,102820.0,102810.0,0.68516]
[1762573442082,0.4193956,102820.0,102810.0,0.85177586]
[1762573442383,0.4193956,102820.0,102810.0,0.30665586]
[1762573442587,0.4193956,102820.0,102810.0,0.85177586]
[1762573443186,0.4193956,102820.0,102810.0,1.00137586]
[1762573443381,0.4193956,102820.0,102810.0,0.37294793]
[1762573443881,0.5167162,102820.0,102810.0,0.17083]
[1762573444088,0.5167162,102820.0,102810.0,0.23290793]
[1762573444385,0.60405497,102820.0,102810.0,0.23290793]
[1762573445489,0.49334864,102820.0,102810.0,0.23290793]
[1762573446085,0.49334864,102820.0,102810.0,0.08330793]
[1762573446282,0.39602804,102820.0,102810.0,0.18063793]
[1762573446477,0.49334864,102820.0,102810.0,0.18063793]
[1762573447784,0.15378,102810.0,102800.0,0.18064743]
[1762573447988,0.51458,102810.0,102800.0,0.18064743]
[1762573448184,0.60191877,102810.0,102800.0,0.20187743]
[1762573448389,0.60191877,102810.0,102800.0,0.18064743]
[1762573449083,0.60191877,102810.0,102800.0,0.18164743]
[1762573449485,0.60191877,102810.0,102800.0,0.18264743]
[1762573450393,0.50458877,102810.0,102800.0,0.18264743]
[1762573450595,0.50458877,102810.0,102800.0,0.18164743]
[1762573451096,0.5843785,102810.0,102800.0,0.18164743]
[1762573451498,0.5843785,102810.0,102800.0,0.18064743]
[1762573451794,0.5853785,102810.0,102800.0,0.18064743]
[1762573452195,0.5873785,102810.0,102800.0,0.18064743]
[1762573452395,0.4890485,102810.0,102800.0,0.31944536]
[1762573452595,0.4910485,102810.0,102800.0,0.31944536]
[1762573453896,0.4890485,102810.0,102800.0,0.31944536]
[1762573454501,0.4880485,102810.0,102800.0,0.31944536]